bitfinex-derivatives/quotes_SOLF0:USTF0_20241203
["timestamp","ask_amount","ask_price","bid_price","bid_amount"]
[1733216578463,14.76190349,226.96,226.92,2.2027]
[1733216578663,12.33401349,226.93,226.81,46.61310228]
[1733216579059,14.76190349,226.96,226.81,46.61310228]
[1733216579256,14.76190349,226.96,226.83,12.33401349]
[1733216579660,14.76190349,226.96,226.95,2.2025]
[1733216580754,0.18789,226.96,226.95,2.2025]
[1733216581057,2.42789,226.96,226.95,2.2025]
[1733216581867,2.42789,226.96,226.84,3.5113]
[1733216582061,14.76190349,226.96,226.84,3.5113]
[1733216582358,14.76190349,226.96,226.84,1.2713]
[1733216582557,12.33401349,226.93,226.85,2.2035]
[1733216582757,12.33401349,226.93,226.81,46.61310228]
[1733216583159,12.33401349,226.93,226.9,2.203]
[1733216583464,12.33401349,226.93,226.81,46.61310228]
[1733216583762,12.33401349,226.93,226.87,2.2033]
[1733216583955,12.33401349,226.93,226.81,46.61310228]
[1733216584765,14.76190349,226.96,226.91,2.2029]
[1733216584955,14.76190349,226.96,226.81,46.61310228]
[1733216585156,2.24,226.95,226.94,2.2026]
[1733216585355,0.18789,226.96,226.88,2.658]
[1733216585864,0.18789,226.96,226.89,12.33401349]
[1733216586061,0.18789,226.96,226.95,2.2025]
[1733216586270,2.24,227.02,226.89,12.33401349]
[1733216586563,2.24,227.03,226.89,12.33401349]
[1733216586762,14.57401349,227.03,226.89,12.33401349]
[1733216587163,14.57401349,227.03,226.97,2.2023]
[1733216587663,14.57401349,227.03,226.98,2.2022]
[1733216588060,2.24,227.03,226.89,12.33401349]
[1733216589665,2.24,227.03,227.0,2.202]
[1733216591367,2.24,227.03,226.89,12.33401349]
[1733216591567,2.24,227.03,226.98,2.2022]
[1733216591766,2.24,227.03,226.89,12.33401349]
[1733216592966,2.24,227.03,226.99,2.2021]
[1733216593166,2.24,227.03,226.89,12.33401349]
[1733216593766,2.24,227.03,226.88,4.898]
[1733216593767,14.57401349,227.03,226.88,4.898]
[1733216593970,12.33401349,227.0,226.91,2.2029]
[1733216594164,12.33401349,227.0,226.88,2.658]
[1733216594871,12.33401349,227.0,226.91,2.2029]
[1733216595172,12.33401349,227.0,226.88,2.658]
[1733216595572,12.33401349,227.0,226.93,2.2026]
[1733216597072,12.33401349,227.0,226.94,2.2026]
[1733216597868,12.33401349,226.97,226.88,1.3854]
[1733216598075,12.33401349,226.93,226.82,1.3986]
[1733216598374,2.24,226.92,226.82,1.3986]
[1733216599373,2.24,226.92,226.88,2.2031]
[1733216599566,2.24,226.92,226.82,1.3986]
[1733216600173,12.33401349,226.9,226.82,1.3986]
[1733216600475,12.33401349,226.9,226.76,2.7411]
[1733216601768,12.33401349,226.9,226.82,2.2038]
[1733216602471,14.53701349,226.9,226.83,2.2037]
[1733216602978,12.33401349,226.9,226.83,2.2037]
[1733216603178,12.33401349,226.87,226.8,2.204]
[1733216603379,2.24,226.86,226.8,2.204]
[1733216603970,12.33401349,226.84,226.76,1.3749]
[1733216604182,12.33401349,226.84,226.68,12.33401349]
[1733216604570,12.33401349,226.81,226.65,14.95101349]
[1733216604776,2.24,226.8,226.66,1.10320072]
[1733216604976,2.24,226.8,226.65,14.95101349]
[1733216605376,12.33401349,226.78,226.72,2.2047]
[1733216606379,12.33401349,226.78,226.73,2.2046]
[1733216607477,12.33401349,226.78,226.74,2.2046]
[1733216608677,12.33401349,226.78,226.76,2.2043]
[1733216608983,12.33401349,226.78,226.65,2.617]
[1733216609179,12.33401349,226.78,226.68,2.2051]
[1733216609478,12.33401349,226.78,226.65,2.617]
[1733216610682,12.33401349,226.78,226.73,2.2047]
[1733216610878,12.33401349,226.78,226.65,2.617]
[1733216612182,12.33401349,226.78,226.72,2.2048]
[1733216613177,12.33401349,226.78,226.65,2.617]
[1733216613385,12.33401349,226.78,226.73,2.2046]
[1733216614275,12.33401349,226.78,226.65,2.617]
[1733216614477,12.33401349,226.78,226.74,2.2046]
[1733216615684,2.24,226.77,226.74,2.2046]
[1733216615884,2.24,226.77,226.75,2.2045]
[1733216619089,14.57401349,226.77,226.75,2.2045]
[1733216619684,7.89596164,226.76,226.75,2.2045]
[1733216621387,7.89596164,226.76,226.65,2.617]
[1733216621587,2.24,226.77,226.65,10.51296164]
[1733216621588,7.89596164,226.73,226.65,10.51296164]
[1733216621784,2.24,226.72,226.71,2.2049]
[1733216622689,2.24,226.76,226.67,7.89596164]
[1733216622890,2.24,226.76,226.75,2.2045]
[1733216625991,2.24,226.76,226.65,2.617]
[1733216626191,7.89596164,226.71,226.65,2.617]
[1733216626396,7.89596164,226.69,226.68,2.2052]
[1733216627498,7.89596164,226.69,226.67,2.2052]
[1733216627790,2.24,226.71,226.65,1.3179]
[1733216629993,2.24,226.71,226.67,2.2052]
[1733216630491,12.34223721,226.72,226.68,2.2051]
[1733216630694,2.24,226.71,226.68,2.2051]
[1733216631491,2.24,226.73,226.65,1.3179]
[1733216631692,2.24,226.73,226.66,1.321]
[1733216632398,2.24,226.73,226.72,2.2048]
[1733216633197,2.24,226.77,226.76,2.2043]
[1733216634489,2.24,226.77,226.74,2.2045]
[1733216634690,2.24,226.77,226.66,1.321]
[1733216635699,2.24,226.77,226.72,2.2047]
[1733216637495,2.24,226.77,226.66,1.321]
[1733216638095,2.24,226.77,226.69,2.205]
[1733216638299,2.24,226.77,226.66,1.321]
[1733216638697,2.24,226.77,226.72,2.2048]
[1733216638898,12.34223721,226.75,226.66,1.321]
[1733216639697,14.58223721,226.77,226.66,1.321]
[1733216640999,14.58223721,226.77,226.71,2.2048]
[1733216641498,2.24,226.77,226.66,13.66323721]
[1733216641709,12.34223721,226.81,226.66,15.90323721]
[1733216641895,2.24,226.8,226.67,1.10339461]
[1733216642099,2.24,226.8,226.68,1.10339461]
[1733216642299,2.24,226.8,226.69,1.10339461]
[1733216642500,2.24,226.8,226.66,15.90323721]
[1733216642705,12.34223721,226.81,226.67,8.26901219]
[1733216642895,12.34223721,226.81,226.68,2.86827868]
[1733216643100,2.24,226.83,226.72,12.34223721]
[1733216643298,2.24,226.83,226.82,2.2037]
[1733216650402,2.24,226.83,226.72,1.2974]
[1733216650604,7.88832181,226.81,226.74,7.88832181]
[1733216651704,7.88832181,226.79,226.73,1.344]
[1733216652111,7.88832181,226.77,226.76,2.2044]
[1733216652307,7.88832181,226.77,226.73,1.344]
[1733216652511,7.88832181,226.75,226.73,1.344]
[1733216652811,7.88832181,226.75,226.74,2.2046]
[1733216654410,2.24,226.78,226.77,2.2043]
[1733216655114,45.86,226.91,226.79,2.204]
[1733216655307,7.88832181,226.81,226.73,1.344]
[1733216655616,2.24,226.9,226.78,7.88832181]
[1733216655811,7.88832181,226.85,226.78,7.88832181]
[1733216656316,7.88832181,226.85,226.81,2.2038]
[1733216656516,7.88832181,226.83,226.74,10.56722181]
[1733216656817,7.88832181,226.78,226.73,1.344]
[1733216657814,7.88832181,226.74,226.67,2.6789]
[1733216658114,10.12832181,226.74,226.67,2.6789]
[1733216659710,10.12832181,226.74,226.72,2.2047]
[1733216660114,2.24,226.74,226.68,7.88832181]
[1733216660716,2.24,226.74,226.73,2.2047]
[1733216661117,10.12832181,226.79,226.7,7.88832181]
[1733216661711,10.12832181,226.79,226.72,7.88832181]
[1733216663307,10.12832181,226.79,226.77,2.2042]
[1733216663516,2.24,226.79,226.69,1.2904]
[1733216663713,2.24,226.82,226.71,12.3312299]
[1733216663919,2.24,226.82,226.81,2.2038]
[1733216664613,2.24,226.82,226.71,12.3312299]
[1733216664809,2.24,226.82,226.8,2.204]
[1733216665815,2.24,226.82,226.69,1.2904]
[1733216666015,2.24,226.82,226.8,2.2039]
[1733216666715,14.5712299,226.82,226.72,2.2047]
[1733216667019,14.5712299,226.82,226.69,1.2904]
[1733216667020,12.3312299,226.79,226.69,1.2904]
[1733216667817,12.3312299,226.79,226.74,2.2045]
[1733216669822,12.3312299,226.79,226.69,1.2904]
[1733216670017,12.3312299,226.79,226.75,2.2044]
[1733216670217,12.3312299,226.79,226.69,1.2904]
[1733216670419,1.35,226.81,226.69,1.2904]
[1733216671325,1.35,226.81,226.72,2.2047]
[1733216671623,1.35,226.81,226.69,1.2904]
[1733216672322,14.5712299,226.82,226.78,2.2041]
[1733216672516,12.3312299,226.85,226.7,12.3312299]
[1733216672717,2.24,226.84,226.73,12.3312299]
[1733216672917,2.24,226.84,226.83,2.2037]
[1733216673116,1.3737,226.9,226.76,12.3312299]
[1733216673318,118.03914505,226.91,226.76,12.3312299]
[1733216673520,2.24,226.9,226.79,13.6804299]
[1733216674321,2.24,226.9,226.82,2.2038]
[1733216674523,2.24,226.9,226.79,13.6804299]
[1733216675120,2.24,226.9,226.79,1.3492]
[1733216675819,2.24,226.9,226.87,2.2033]
[1733216676722,2.24,226.9,226.79,1.3492]
[1733216677026,2.24,226.9,226.86,2.2034]
[1733216677218,2.24,226.9,226.79,1.3492]
[1733216677424,2.24,226.9,226.84,2.2035]
[1733216677923,2.24,226.9,226.79,1.3492]
[1733216678123,2.24,226.9,226.85,2.2034]
[1733216678818,2.24,226.9,226.87,2.2033]
[1733216679019,2.24,226.9,226.79,1.3492]
[1733216679325,2.24,226.9,226.79,13.6804299]
[1733216680121,12.3312299,226.94,226.91,2.2028]
[1733216680325,2.22,226.93,226.91,2.2028]
[1733216680626,2.22,226.93,226.82,14.5512299]
[1733216681028,2.22,226.93,226.92,2.2028]
[1733216681727,59.77976033,227.02,226.96,2.2024]
[1733216681920,14.5512299,227.01,226.85,12.3312299]
[1733216682226,14.5512299,227.01,226.96,2.2024]
[1733216682528,14.5512299,227.01,226.87,2.22]
[1733216682919,14.5512299,227.01,226.97,2.2023]
[1733216683117,2.22,227.0,226.97,2.2023]
[1733216685327,2.22,227.0,226.99,2.2021]
[1733216687325,2.22,227.0,226.97,2.2023]
[1733216687623,2.22,227.0,226.88,13.6612299]
[1733216687824,2.22,227.0,226.96,2.2024]
[1733216688028,2.22,227.0,226.88,13.6612299]
[1733216688623,2.22,227.0,226.96,2.2024]
[1733216689822,2.22,227.0,226.97,2.2023]
[1733216692228,2.22,227.0,226.88,13.6612299]
[1733216692426,2.22,227.0,226.95,2.2025]
[1733216692628,2.22,227.0,226.88,1.33]
[1733216693124,4.422,227.0,226.94,2.2026]
[1733216693725,2.22,227.0,226.94,2.2026]
[1733216693921,2.22,227.0,226.95,2.2025]
[1733216697226,2.22,227.0,226.85,12.3312299]
[1733216697227,12.3312299,226.98,226.77,4.4085]
[1733216697427,12.3312299,226.95,226.82,1.3847]
[1733216697627,2.22,226.94,226.82,1.3847]
[1733216698233,2.22,226.94,226.85,2.2034]
[1733216698427,2.22,226.94,226.82,1.3847]
[1733216699029,4.4227,226.94,226.82,1.3847]
[1733216699629,4.4227,226.94,226.87,2.2032]
[1733216700031,4.4227,226.94,226.82,1.3847]
[1733216700229,4.4227,226.94,226.88,2.2031]
[1733216700230,2.22,226.94,226.88,2.2031]
[1733216700933,4.4226,226.94,226.88,2.2031]
[1733216701332,2.22,226.94,226.82,1.3847]
[1733216701929,2.22,226.94,226.89,2.2031]
[1733216702131,2.22,226.94,226.82,1.3847]
[1733216702729,12.3312299,226.92,226.82,1.3847]
[1733216703433,12.3312299,226.92,226.78,2.561]
[1733216703631,12.3312299,226.89,226.78,1.2849]
[1733216703827,2.22,226.88,226.78,1.2849]
[1733216705034,2.22,226.88,226.77,1.3044]
[1733216705235,2.2033,226.87,226.81,2.2039]
[1733216705729,4.4233,226.88,226.81,2.2038]
[1733216706138,4.4233,226.88,226.77,1.3044]
[1733216706633,4.4233,226.88,226.8,2.204]
[1733216706838,14.5346299,226.86,226.8,2.204]
[1733216707040,12.3312299,226.86,226.77,1.3044]
[1733216707340,12.3312299,226.86,226.78,2.2041]
[1733216707539,12.3312299,226.83,226.71,2.6272]
[1733216707740,2.22,226.82,226.76,2.2043]
[1733216708132,12.3312299,226.8,226.69,29.34401866]
[1733216708340,12.3312299,226.8,226.73,2.2046]
[1733216708738,12.3312299,226.8,226.65,1.347]
[1733216709140,12.3312299,226.77,226.65,1.347]
[1733216709437,2.22,226.76,226.73,2.2046]
[1733216710043,2.22,226.76,226.75,2.2045]
[1733216710240,2.22,226.8,226.72,12.3312299]
[1733216710541,2.22,226.8,226.79,2.2041]
[1733216710933,2.22,226.8,226.74,1.3133]
[1733216711138,2.22,226.8,226.73,2.2046]
[1733216711139,14.5512299,226.8,226.73,2.2046]
[1733216711441,14.5512299,226.8,226.66,1.3133]
[1733216711840,2.2041,226.79,226.72,2.2048]
[1733216712042,2.2041,226.79,226.66,1.3133]
[1733216713039,2.2041,226.79,226.71,2.2048]
[1733216713240,2.2041,226.79,226.66,1.3133]
[1733216713642,12.3312299,226.77,226.66,1.3133]
[1733216714251,2.22,226.8,226.66,13.6445299]
[1733216714439,2.22,226.8,226.69,12.3312299]
[1733216714842,12.3312299,226.85,226.78,2.2042]
[1733216715145,2.22,226.84,226.78,2.2042]
[1733216716046,68.2914996,226.88,226.72,12.3312299]
[1733216716252,2.22,226.87,226.75,12.3312299]
[1733216716550,2.22,226.87,226.79,1.3401]
[1733216716948,2.22,226.87,226.85,2.2035]
[1733216717144,2.22,226.87,226.79,1.3401]
[1733216718651,2.22,226.87,226.84,2.2036]
[1733216718853,2.22,226.87,226.79,1.3401]
[1733216719055,12.3312299,226.85,226.79,1.3401]
[1733216719248,12.3312299,226.85,226.73,2.7249]
[1733216719454,2.2037,226.84,226.73,2.7249]
[1733216719757,12.3312299,226.82,226.73,2.7249]
[1733216719955,2.22,226.81,226.73,2.7249]
[1733216720653,2.22,226.81,226.72,1.339]
[1733216721053,2.22,226.81,226.69,2.205]
[1733216721054,12.3312299,226.79,226.69,2.205]
[1733216721253,12.3312299,226.79,226.65,2.22]
[1733216721658,12.3312299,226.79,226.67,1.2791]
[1733216722959,12.3312299,226.79,226.73,2.2046]
[1733216724161,2.22,226.81,226.67,3.4843]
[1733216724162,12.3312299,226.74,226.67,3.4843]
[1733216724359,2.22,226.73,226.67,3.4843]
[1733216724554,2.22,226.73,226.67,1.2791]
[1733216725160,2.22,226.73,226.68,2.2051]
[1733216725362,2.22,226.73,226.67,1.2791]
[1733216726865,2.22,226.73,226.7,2.2049]
[1733216727657,2.22,226.73,226.67,1.2791]
[1733216727862,2.22,226.73,226.67,3.4843]
[1733216728966,2.22,226.73,226.67,2.2052]
[1733216729367,2.22,226.73,226.62,2.6279]
[1733216729563,12.3312299,226.71,226.65,2.2054]
[1733216729964,14.5361299,226.71,226.63,2.2055]
[1733216730159,14.5361299,226.71,226.58,12.3312299]
[1733216730364,12.3312299,226.71,226.58,12.3312299]
[1733216730569,12.3312299,226.71,226.65,2.2054]
[1733216730768,12.3312299,226.71,226.55,12.3312299]
[1733216731064,2.205,226.7,226.62,2.2057]
[1733216731262,12.3312299,226.71,226.55,12.3312299]
[1733216731569,12.3312299,226.71,226.55,16.3486299]
[1733216731763,14.5361299,226.71,226.55,16.3486299]
[1733216732770,12.3312299,226.68,226.55,16.3486299]
[1733216732971,2.22,226.67,226.55,16.3486299]
[1733216733371,2.22,226.67,226.63,2.2056]
[1733216734274,2.22,226.67,226.55,16.3486299]
[1733216734477,2.22,226.67,226.62,2.2057]
[1733216734671,2.22,226.67,226.55,4.0174]
[1733216734876,12.3312299,226.65,226.55,4.0174]
[1733216735375,12.3312299,226.65,226.58,2.2061]
[1733216735970,12.3312299,226.62,226.56,2.2062]
[1733216736175,2.22,226.61,226.56,2.2062]
[1733216736875,2.22,226.61,226.55,1.287]
[1733216736876,4.4258,226.61,226.55,1.287]
[1733216737079,12.3312299,226.59,226.55,1.287]
[1733216737278,12.3312299,226.59,226.47,2.7249]
[1733216738281,12.3312299,226.59,226.52,2.2067]
[1733216738877,14.5372299,226.59,226.52,2.2067]
[1733216739176,12.3312299,226.59,226.54,2.2065]
[1733216739378,12.3312299,226.59,226.47,2.7249]
[1733216740085,12.3312299,226.59,226.51,2.2068]
[1733216740278,12.3312299,226.56,226.51,2.2068]
[1733216740574,2.22,226.55,226.51,2.2068]
[1733216741380,2.22,226.55,226.47,2.7249]
[1733216741675,12.3312299,226.53,226.45,1.3808]
[1733216742678,2.22,226.55,226.45,1.3808]
[1733216743687,2.22,226.55,226.51,2.2067]
[1733216745584,2.22,226.55,226.5,2.2069]
[1733216745981,12.3312299,226.53,226.46,2.2072]
[1733216746280,12.3312299,226.5,226.46,2.2072]
[1733216746479,2.22,226.49,226.45,1.3808]
[1733216746673,2.22,226.48,226.38,0.21167242]
[1733216746877,2.22,226.48,226.39,8.25382153]
[1733216747079,12.3312299,226.47,226.4,8.25382153]
[1733216747280,12.3312299,226.47,226.42,2.2077]
[1733216747475,12.3312299,226.47,226.43,1.10462286]
[1733216747682,12.3312299,226.47,226.35,12.54290232]
[1733216747882,12.3312299,226.47,226.36,13.33046141]
[1733216748083,12.3312299,226.47,226.37,8.25449364]
[1733216748283,12.3312299,226.47,226.43,2.2076]
[1733216748588,2.22,226.48,226.35,12.54290232]
[1733216748784,2.22,226.48,226.36,13.5392987]
[1733216749082,2.22,226.48,226.45,2.2073]
[1733216750283,2.22,226.48,226.46,2.2073]
[1733216750482,2.22,226.48,226.39,1.3362]
[1733216750483,12.3312299,226.53,226.39,1.3362]
[1733216750687,2.22,226.51,226.4,8.25107572]
[1733216750882,2.22,226.51,226.41,5.08166596]
[1733216751081,2.22,226.51,226.42,2.87224598]
[1733216751285,2.22,226.51,226.49,2.207]
[1733216751782,2.22,226.51,226.47,2.2071]
[1733216751984,2.22,226.51,226.39,1.3362]
[1733216752178,2.22,226.51,226.4,8.25062712]
[1733216752382,2.22,226.51,226.41,8.25062712]
[1733216752682,2.22,226.51,226.42,2.87211052]
[1733216752881,2.22,226.51,226.45,2.2074]
[1733216753084,2.22,226.51,226.39,1.3362]
[1733216753287,2.22,226.51,226.4,5.08147406]
[1733216753483,2.22,226.51,226.41,2.87214311]
[1733216753680,2.22,226.51,226.42,2.87214311]
[1733216753882,2.22,226.51,226.43,1.10467043]
[1733216754187,2.22,226.51,226.39,1.3362]
[1733216754390,2.22,226.51,226.4,2.87210045]
[1733216754577,12.3312299,226.53,226.47,2.2071]
[1733216754884,2.22,226.52,226.39,1.3362]
[1733216755086,2.22,226.52,226.4,2.87211203]
[1733216755277,2.22,226.52,226.41,2.87211203]
[1733216755482,2.22,226.52,226.42,1.10465847]
[1733216755789,2.22,226.52,226.43,1.10465847]
[1733216756089,2.22,226.52,226.39,1.3362]
[1733216756282,2.22,226.52,226.47,2.2072]
[1733216757886,12.3312299,226.5,226.45,2.2073]
[1733216758081,12.3312299,226.5,226.39,1.3362]
[1733216758287,12.3312299,226.5,226.4,1.10469522]
[1733216758591,12.3312299,226.5,226.42,2.2077]
[1733216758883,12.3312299,226.5,226.39,1.3362]
[1733216759092,12.3312299,226.5,226.4,1.10475156]
[1733216759281,12.3312299,226.5,226.45,2.2073]
[1733216759591,12.3312299,226.5,226.39,1.3362]
[1733216760288,12.3312299,226.5,226.4,1.10475557]
[1733216760482,2.22,226.51,226.41,2.87220802]
[1733216760791,2.22,226.51,226.49,2.2069]
[1733216760986,12.3312299,226.5,226.39,1.3362]
[1733216761286,12.3312299,226.5,226.46,2.2073]
[1733216761690,12.3312299,226.5,226.39,1.3362]
[1733216761881,12.3312299,226.5,226.4,1.10478408]
[1733216762087,12.3312299,226.53,226.41,1.10478408]
[1733216762290,2.22,226.52,226.5,2.2068]
[1733216763784,2.22,226.52,226.39,1.3362]
[1733216764085,2.22,226.54,226.41,12.3312299]
[1733216764288,2.22,226.54,226.42,2.87206142]
[1733216764481,2.22,226.54,226.43,2.87206142]
[1733216764693,12.3312299,226.49,226.44,1.10463901]
[1733216764890,2.22,226.48,226.39,1.3362]
[1733216765084,2.22,226.48,226.43,2.2075]
[1733216766191,2.22,226.48,226.44,2.2075]
[1733216766392,2.22,226.48,226.39,1.3362]
[1733216766592,2.22,226.48,226.47,2.2072]
[1733216767699,2.22,226.5,226.48,2.2071]
[1733216769186,2.22,226.5,226.39,1.5484463]
[1733216769397,2.22,226.5,226.49,2.207]
[1733216770489,12.3312299,226.52,226.51,2.2068]
[1733216770696,12.3312299,226.55,226.42,0.2122463]
[1733216770897,12.3312299,226.55,226.43,8.26827353]
[1733216771093,12.3312299,226.55,226.44,3.18710426]
[1733216771294,12.3312299,226.55,226.45,8.27024916]
[1733216771493,12.3312299,226.55,226.46,5.08115326]
[1733216771693,12.3312299,226.55,226.47,2.87196524]
[1733216771888,12.3312299,226.52,226.48,3.31170201]
[1733216772191,14.5512299,226.52,226.48,2.2071]
[1733216772398,14.5512299,226.52,226.49,1.10463453]
[1733216772697,14.5512299,226.52,226.48,2.2071]
[1733216773398,14.5512299,226.52,226.49,3.31164431]
[1733216773597,14.5512299,226.52,226.49,2.207]
[1733216775295,12.3312299,226.52,226.42,0.21261907]
[1733216775499,2.22,226.55,226.54,2.2065]
[1733216775892,2.22,226.55,226.45,2.22]
[1733216776093,2.22,226.55,226.46,8.27787272]
[1733216776295,2.22,226.55,226.47,2.87191052]
[1733216776494,2.22,226.55,226.48,2.87191052]
[1733216776794,2.22,226.55,226.54,2.2065]
[1733216777001,12.3312299,226.58,226.49,1.3168]
[1733216777192,0.26799,226.62,226.5,8.27795218]
[1733216777396,2.22,226.61,226.6,2.2059]
[1733216777695,2.22,226.61,226.5,14.5512299]
[1733216777897,2.22,226.61,226.51,8.27855277]
[1733216778197,14.5512299,226.61,226.52,8.27855277]
[1733216778397,14.5512299,226.61,226.53,2.87095156]
[1733216778597,14.5512299,226.61,226.56,2.2063]
[1733216778799,14.5512299,226.61,226.5,2.22]
[1733216778996,14.5512299,226.61,226.51,8.27953349]
[1733216779198,0.26799,226.62,226.61,2.2058]
[1733216780502,2.22,226.67,226.56,14.9522299]
[1733216780704,2.22,226.67,226.65,2.2053]
[1733216781398,14.5512299,226.7,226.56,14.9522299]
[1733216781594,2.22,226.7,226.59,12.3312299]
[1733216781795,2.22,226.7,226.63,2.2056]
[1733216782000,2.22,226.7,226.59,12.3312299]
[1733216782299,2.22,226.7,226.6,1.10372433]
[1733216782507,2.22,226.7,226.66,2.2053]
[1733216782797,2.22,226.7,226.59,12.3312299]
[1733216783003,13.7308299,226.73,226.6,5.08965492]
[1733216783004,2.22,226.73,226.6,5.08965492]
[1733216783205,2.22,226.73,226.61,1.10371343]
[1733216783404,14.5512299,226.73,226.6,2.22]
[1733216783594,14.5512299,226.73,226.67,2.2052]
[1733216784001,14.5512299,226.73,226.6,2.22]
[1733216784199,14.5512299,226.73,226.61,1.10369819]
[1733216784400,14.5512299,226.73,226.6,2.22]
[1733216785704,14.5512299,226.73,226.6,3.5984]
[1733216785911,14.5512299,226.73,226.6,1.3784]
[1733216786400,12.3312299,226.7,226.6,1.3784]
[1733216786604,12.3312299,226.7,226.65,2.2054]
[1733216786800,12.3312299,226.7,226.6,1.3784]
[1733216787004,4.4247,226.73,226.6,1.3784]
[1733216787005,14.5512299,226.73,226.6,1.3784]
[1733216787414,14.5512299,226.73,226.66,2.2053]
[1733216787909,14.5512299,226.73,226.67,2.2052]
[1733216788605,14.5512299,226.73,226.6,1.3784]
[1733216789000,14.5512299,226.73,226.66,2.2053]
[1733216789309,12.3312299,226.7,226.6,1.3784]
[1733216789700,12.3312299,226.7,226.58,2.22]
[1733216790701,12.3312299,226.7,226.61,2.2058]
[1733216790909,12.3312299,226.7,226.58,2.22]
[1733216791106,12.3312299,226.7,226.56,2.621]
[1733216791311,12.3312299,226.7,226.62,2.2056]
[1733216791609,12.3312299,226.7,226.56,2.621]
[1733216791806,14.5362299,226.7,226.62,2.2057]
[1733216792210,12.3312299,226.7,226.56,2.621]
[1733216792412,2.22,226.69,226.65,2.2054]
[1733216792805,2.22,226.69,226.57,12.3312299]
[1733216793712,2.22,226.69,226.64,2.2055]
[1733216794411,2.22,226.69,226.65,2.2054]
[1733216795208,2.22,226.69,226.66,2.2053]
[1733216798416,2.2054,226.66,226.54,1.3167]
[1733216798613,12.3312299,226.64,226.54,1.3167]
[1733216798814,2.22,226.63,226.54,1.3167]
[1733216799226,2.22,226.63,226.59,2.206]
[1733216799919,2.22,226.63,226.61,2.2058]
[1733216800321,2.22,226.63,226.53,12.3312299]
[1733216800822,2.22,226.63,226.56,2.2063]
[1733216801015,2.22,226.63,226.53,12.3312299]
[1733216801221,2.22,226.67,226.54,2.22]
[1733216801921,2.22,226.67,226.64,2.2055]
[1733216802715,2.22,226.67,226.55,1.2966]
[1733216802920,2.22,226.67,226.65,2.2054]
[1733216803419,14.5512299,226.78,226.73,2.2047]
[1733216803725,2.22,226.78,226.66,12.3312299]
[1733216804517,2.22,226.78,226.69,2.205]
[1733216804814,2.22,226.78,226.66,12.3312299]
[1733216805020,2.22,226.78,226.66,13.6207299]
[1733216805218,2.22,226.78,226.74,2.2045]
[1733216805522,2.22,226.8,226.66,13.6207299]
[1733216806220,2.22,226.8,226.73,2.2046]
[1733216806420,2.22,226.8,226.68,2.22]
[1733216806724,2.22,226.8,226.73,2.2046]
[1733216808225,2.22,226.8,226.66,13.6207299]
[1733216808426,2.22,226.8,226.74,2.2046]
[1733216809016,2.22,226.8,226.74,2.2045]
[1733216809827,4.424,226.8,226.74,2.2045]
[1733216811123,2.2044,226.76,226.7,2.2049]
[1733216811427,2.22,226.75,226.65,1.3588]
[1733216812022,2.22,226.75,226.68,2.2052]
[1733216812216,2.22,226.75,226.65,1.3588]
[1733216812417,2.22,226.75,226.63,12.5361999]
[1733216812418,12.3312299,226.73,226.63,0.20497]
[1733216812827,12.3312299,226.7,226.63,0.20497]
[1733216813029,2.22,226.69,226.63,0.20497]
[1733216813230,12.3312299,226.67,226.63,0.20497]
[1733216814326,2.22,226.69,226.63,0.20497]
[1733216814829,2.22,226.69,226.64,2.2055]
[1733216815828,4.4251,226.69,226.63,0.20497]
[1733216816025,2.22,226.69,226.63,0.20497]
[1733216816228,12.3312299,226.67,226.63,0.20497]
[1733216816730,2.2054,226.66,226.63,0.20497]